bitfinex-derivatives/quotes_ETHF0:USTF0_20241231
["timestamp","ask_amount","ask_price","bid_price","bid_amount"]
[1735607162613,0.30154,3322.1,3321.8,41.10156]
[1735607163016,2.96580953,3322.0,3321.8,40.8]
[1735607163209,3.9617,3321.9,3321.1,3.257]
[1735607163416,0.3016,3321.4,3321.1,3.55862]
[1735607163621,0.30161,3321.3,3321.1,3.257]
[1735607163825,0.30157,3321.8,3321.4,0.3016]
[1735607164525,0.30157,3321.8,3321.5,0.30159]
[1735607164717,8.45547737,3322.4,3321.4,3.2078]
[1735607165023,0.30155,3322.0,3321.7,0.30157]
[1735607165218,0.30156,3321.9,3321.6,0.30158]
[1735607165419,8.45547737,3322.4,3321.5,1.418]
[1735607165618,0.30157,3321.8,3321.5,1.71959]
[1735607165820,2.96580953,3322.0,3321.5,1.418]
[1735607166023,0.30155,3321.9,3321.5,1.418]
[1735607166214,0.30156,3321.9,3321.6,0.30157]
[1735607166526,0.30158,3321.7,3321.4,3.2078]
[1735607166725,0.30158,3321.7,3321.4,3.5094]
[1735607167121,6.17360953,3322.0,3321.4,3.2078]
[1735607167422,6.17360953,3322.0,3321.5,0.30158]
[1735607167624,6.17360953,3322.0,3321.4,3.2078]
[1735607167823,2.96580953,3322.0,3321.6,0.30158]
[1735607168123,2.96580953,3322.0,3321.4,3.2078]
[1735607168326,8.45547737,3322.4,3321.4,8.2078]
[1735607168521,8.45547737,3322.4,3321.4,8.9618]
[1735607168715,0.30153,3322.2,3321.8,0.30156]
[1735607169032,8.45547737,3322.4,3321.8,0.30156]
[1735607169324,0.30156,3321.8,3321.5,0.30159]
[1735607169522,6.92738953,3322.4,3321.6,0.30158]
[1735607170027,3.2078,3322.4,3321.4,3.2078]
[1735607170223,0.30151,3322.5,3321.8,3.2078]
[1735607170421,6.00139737,3322.7,3321.8,3.2078]
[1735607170622,0.30155,3322.0,3321.8,3.2078]
[1735607170825,2.96580953,3322.3,3321.5,1.403]
[1735607171129,2.96580953,3322.3,3322.1,0.30153]
[1735607171524,0.30149,3322.6,3322.0,0.30155]
[1735607171723,0.30149,3322.6,3322.3,0.30152]
[1735607172521,2.96580953,3322.7,3322.1,1.6994]
[1735607172723,2.96580953,3322.7,3322.4,0.30151]
[1735607172929,2.96580953,3322.7,3322.5,0.30149]
[1735607173226,3.2078,3322.8,3322.3,42.203]
[1735607173426,3.2078,3322.8,3322.6,0.30149]
[1735607173626,3.50927,3322.8,3322.6,0.30149]
[1735607173828,3.50927,3322.8,3322.3,42.203]
[1735607174025,0.30148,3322.7,3322.4,0.3015]
[1735607174227,3.2078,3322.8,3322.3,42.203]
[1735607174531,0.30149,3322.6,3322.4,0.30151]
[1735607175028,0.30149,3322.6,3322.3,42.50451]
[1735607175824,0.30149,3322.6,3322.4,0.30151]
[1735607176026,3.2078,3322.8,3322.4,0.30151]
[1735607176232,0.30149,3322.6,3322.4,0.30151]
[1735607176728,2.96580953,3322.7,3322.1,1.6994]
[1735607176928,3.26733953,3322.2,3322.1,1.6994]
[1735607177127,0.30157,3321.7,3321.6,3.2078]
[1735607178433,3.96161,3322.3,3321.5,4.8015]
[1735607178434,3.2078,3322.3,3321.5,4.8015]
[1735607178635,3.2078,3322.3,3321.7,0.30157]
[1735607178636,0.30155,3322.0,3321.7,0.30157]
[1735607178832,3.2078,3322.3,3321.5,4.8015]
[1735607179136,0.30158,3321.6,3321.5,1.5937]
[1735607179538,2.96580953,3322.1,3321.5,4.8015]
[1735607179926,0.30151,3322.4,3322.1,0.30153]
[1735607180128,3.26730953,3322.5,3322.2,0.30152]
[1735607180323,8.48067148,3322.7,3322.1,1.402]
[1735607180530,6.17360953,3322.7,3322.1,1.402]
[1735607181034,3.26729953,3322.7,3322.2,0.30153]
[1735607181234,0.30149,3322.6,3322.3,1.7025]
[1735607182237,0.30151,3322.4,3322.3,1.7025]
[1735607182737,0.30149,3322.6,3322.3,1.7025]
[1735607182930,6.47508953,3322.7,3322.3,2.00401]
[1735607183125,6.17360953,3322.7,3322.3,1.7025]
[1735607183330,0.3015,3322.5,3322.3,1.7025]
[1735607183635,0.30151,3322.4,3322.3,1.7025]
[1735607184030,0.3015,3322.6,3322.3,1.7025]
[1735607184430,2.30706195,3322.9,3322.3,4.9103]
[1735607184635,0.30149,3322.6,3322.3,4.9103]
[1735607185536,2.30706195,3322.9,3322.3,4.9103]
[1735607185736,0.3015,3322.6,3322.3,4.9103]
[1735607185932,0.3015,3322.6,3322.3,5.21182]
[1735607186632,8.48067148,3323.1,3322.3,4.9103]
[1735607186838,0.30147,3322.9,3322.5,0.30149]
[1735607187038,0.30147,3322.8,3322.3,4.9103]
[1735607187341,0.30148,3322.7,3322.4,0.30151]
[1735607187638,0.30151,3322.4,3322.3,4.9103]
[1735607188136,0.30151,3322.4,3322.3,3.2078]
[1735607188332,6.17360953,3322.7,3322.3,3.2078]
[1735607188735,0.30151,3322.4,3322.3,3.2078]
[1735607192333,2.60857195,3322.4,3322.3,3.2078]
[1735607193640,2.30706195,3322.4,3322.3,3.2078]
[1735607193840,2.60857195,3322.4,3322.3,44.0078]
[1735607194041,2.60857195,3322.4,3322.3,3.2078]
[1735607194545,2.60857195,3322.4,3322.3,44.0078]
[1735607194744,0.30151,3322.4,3322.3,44.0078]
[1735607195042,2.30706195,3322.5,3322.3,44.30931]
[1735607195340,2.30706195,3322.5,3322.3,45.3878]
[1735607195741,0.30149,3322.6,3322.3,45.3878]
[1735607196342,2.96580953,3322.7,3322.5,0.30149]
[1735607196541,2.96580953,3322.7,3322.4,0.3015]
[1735607197342,3.26728953,3322.7,3322.3,4.88931]
[1735607197640,0.3015,3322.5,3322.3,4.5878]
[1735607197942,0.3015,3322.5,3322.3,1.38]
[1735607198139,6.17360953,3322.7,3322.2,3.3074]
[1735607198445,5.81095844,3322.7,3322.3,0.30151]
[1735607198643,5.81095844,3322.7,3322.2,4.6874]
[1735607198644,5.50946844,3322.7,3322.2,4.6874]
[1735607198846,0.3015,3322.5,3322.2,4.98892]
[1735607199144,5.50946844,3322.7,3322.2,4.6874]
[1735607199436,0.30149,3322.6,3322.2,4.6874]
[1735607199639,2.30166844,3322.4,3322.2,3.0874]
[1735607199835,2.30166844,3322.4,3321.7,3.2078]
[1735607200038,8.2078,3322.7,3321.7,3.2078]
[1735607200039,2.30166844,3322.1,3321.7,3.2078]
[1735607200240,0.30155,3322.0,3321.7,3.50937]
[1735607201041,2.30166844,3322.4,3321.7,3.2078]
[1735607201339,0.30152,3322.3,3321.9,0.30155]
[1735607201533,2.30166844,3322.4,3321.9,0.30155]
[1735607201738,0.30154,3322.1,3321.9,0.30155]
[1735607202036,2.30166844,3322.4,3321.7,3.2078]
[1735607202237,2.30166844,3322.4,3322.1,0.30153]
[1735607202238,2.60318844,3322.4,3322.1,0.30153]
[1735607202439,0.30152,3322.3,3322.2,1.608]
[1735607203050,2.30166844,3322.4,3322.2,1.608]
[1735607203242,0.30151,3322.5,3322.2,1.608]
[1735607203439,7.81653039,3322.7,3322.3,1.88381]
[1735607203633,0.30151,3322.5,3322.3,1.88381]
[1735607203944,7.81653039,3322.7,3322.4,0.30151]
[1735607204241,0.3015,3322.5,3322.3,1.88381]
[1735607204746,2.60315844,3322.7,3322.5,0.30149]
[1735607204943,2.30166844,3322.7,3322.3,1.5823]
[1735607205143,0.3015,3322.5,3322.3,1.88382]
[1735607205547,2.30166844,3322.4,3322.2,4.8158]
[1735607205840,0.30152,3322.3,3322.2,4.8158]
[1735607206049,0.30152,3322.3,3322.2,1.608]
[1735607206945,0.30154,3322.1,3321.8,51.80976587]
[1735607207246,0.30153,3322.2,3322.0,0.30155]
[1735607207849,0.30154,3322.1,3322.0,0.30155]
[1735607208741,4.60873039,3322.4,3321.9,1.7079]
[1735607209640,0.30153,3322.2,3322.1,0.30153]
[1735607209840,0.30154,3322.1,3322.0,0.30154]
[1735607210040,2.30706195,3322.3,3321.9,1.7079]
[1735607210333,0.30153,3322.2,3322.1,0.30153]
[1735607210835,2.30706195,3322.3,3321.9,1.7079]
[1735607211041,0.30153,3322.2,3322.1,0.30153]
[1735607211245,2.30166844,3322.4,3321.9,1.7079]
[1735607211543,0.30153,3322.2,3322.1,0.30153]
[1735607211741,2.30166844,3322.4,3322.0,1.38]
[1735607211945,0.30154,3322.1,3322.0,1.38]
[1735607212343,0.30152,3322.3,3322.1,0.30153]
[1735607212545,0.30152,3322.3,3322.2,0.30153]
[1735607213145,4.91025039,3322.4,3322.2,0.30153]
[1735607213539,4.60873039,3322.4,3322.1,0.00543585]
[1735607213747,2.30166844,3322.4,3322.1,0.00543585]
[1735607214051,0.30153,3322.3,3322.1,0.00543585]
[1735607214251,0.30153,3322.2,3322.1,0.00543585]
[1735607215251,2.60859195,3322.2,3322.1,0.00543585]
[1735607216750,3.76212293,3322.2,3322.1,0.00543585]
[1735607218246,0.30153,3322.2,3322.1,0.00543585]
[1735607219646,0.75400485,3322.2,3322.1,0.00543585]
[1735607221152,0.30153,3322.2,3322.1,0.00543585]
[1735607221944,0.30153,3322.2,3322.1,1.67813585]
[1735607223654,2.61652298,3322.2,3322.1,1.67813585]
[1735607225255,2.31499298,3322.2,3322.1,1.97967585]
[1735607226156,4.6141239,3322.5,3322.3,0.30152]
[1735607226157,2.31499298,3322.4,3322.3,0.30152]
[1735607226464,2.61650298,3322.4,3322.3,1.34]
[1735607226850,2.61650298,3322.4,3322.1,1.67813585]
[1735607226851,2.31499298,3322.4,3322.1,1.67813585]
[1735607227050,2.60319844,3322.2,3322.1,1.67813585]
[1735607227455,0.30153,3322.2,3322.1,1.67813585]
[1735607227760,3.50931,3322.4,3322.2,0.30152]
[1735607228248,3.2078,3322.4,3322.2,0.30152]
[1735607228549,3.50931,3322.4,3322.2,0.30152]
[1735607229048,3.2078,3322.4,3322.1,1.67813585]
[1735607229248,0.30152,3322.3,3322.1,1.97967585]
[1735607229759,2.60319844,3322.2,3322.1,1.67813585]
[1735607230351,2.60319844,3322.2,3322.1,0.00543585]
[1735607230746,7.60319844,3322.2,3322.1,0.00543585]
[1735607230952,11.07629152,3322.2,3322.1,0.00543585]
[1735607231561,11.07629152,3322.2,3321.5,4.72136587]
[1735607231562,0.30158,3321.6,3321.5,4.72136587]
[1735607231760,5.81104844,3321.6,3321.5,4.72136587]
[1735607232253,0.3016,3321.4,3321.2,1.6055]
[1735607232453,5.81105844,3321.6,3321.2,1.90711]
[1735607232650,0.30159,3321.5,3321.2,1.90711]
[1735607233057,2.31492763,3321.5,3321.2,1.6055]
[1735607233266,0.3016,3321.4,3321.2,1.6055]
[1735607234554,2.31492763,3321.6,3321.5,0.30159]
[1735607235057,2.31492763,3321.6,3321.5,41.10159]
[1735607235461,0.30157,3321.8,3321.5,41.10159]
[1735607235656,2.30166844,3322.1,3321.5,41.10159]
[1735607235959,0.30157,3321.7,3321.5,41.10159]
[1735607236461,0.30158,3321.6,3321.5,41.10159]
[1735607237461,0.30159,3321.5,3321.4,4.72136587]
[1735607238057,0.3016,3321.4,3321.3,4.72136587]
[1735607239563,0.30161,3321.3,3321.2,1.6055]
[1735607241364,5.0,3321.3,3320.8,4.72136587]
[1735607241564,2.60331844,3320.9,3320.8,4.72136587]
[1735607241765,0.30165,3320.8,3320.7,4.72136587]
[1735607242263,0.30165,3320.8,3320.4,9.44273174]
[1735607242264,0.30168,3320.5,3320.4,9.44273174]
[1735607242464,8.11281688,3320.5,3320.4,4.44856135]
[1735607242674,0.3017,3320.3,3319.8,14.16409762]
[1735607242970,0.3017,3320.3,3320.2,5.94844965]
[1735607242971,2.60336844,3320.3,3320.2,5.94844965]
[1735607243269,0.30174,3319.9,3319.8,13.52843762]
[1735607243466,5.81120844,3319.9,3319.8,12.57275762]
[1735607243660,5.81120844,3319.9,3318.4,3.2078]
[1735607243661,18.09522382,3319.9,3318.7,11.8343764]
[1735607243864,0.30184,3318.8,3318.7,11.8343764]
[1735607244066,2.60350844,3318.8,3318.7,11.8343764]
[1735607244364,7.60350844,3318.8,3318.7,11.42488988]
[1735607244563,15.12118209,3318.8,3318.7,10.35488188]
[1735607244769,15.12118209,3318.8,3318.7,9.59004201]
[1735607244972,15.12118209,3318.8,3318.7,9.45113262]
[1735607245271,0.3019,3318.2,3317.9,1.14356432]
[1735607245467,2.30166844,3318.0,3317.9,1.14356432]
[1735607247571,2.30166844,3318.0,3317.8,0.30192]
[1735607247972,3.2078,3318.5,3317.7,4.9114]
[1735607247973,2.30166844,3318.3,3317.9,0.30191]
[1735607248165,2.30166844,3318.3,3317.7,2.49537206]
[1735607248366,2.30166844,3318.0,3317.7,2.49537206]
[1735607248570,2.30166844,3318.0,3317.8,40.8]
[1735607248871,2.2966372,3319.1,3317.8,40.8]
[1735607248872,2.30166844,3318.6,3317.9,0.30192]
[1735607249073,2.30166844,3318.6,3318.4,3.2078]
[1735607249775,2.30166844,3318.6,3318.5,1.95736]
[1735607250075,5.5044372,3319.1,3318.5,1.95736]
[1735607250076,3.2078,3319.1,3318.5,1.6555]
[1735607250275,2.30166844,3319.4,3318.9,3.2078]
[1735607250574,0.30182,3319.0,3318.5,1.6555]
[1735607250767,2.30166844,3318.8,3318.5,1.6555]
[1735607251267,2.60347844,3319.1,3318.5,1.95735]
[1735607251473,5.50946844,3319.4,3319.0,0.30182]
[1735607251672,5.50946844,3319.4,3318.9,3.2078]
[1735607251673,0.3018,3319.3,3318.9,3.2078]
[1735607251871,2.30166844,3319.1,3318.9,3.2078]
[1735607252271,2.60347844,3319.1,3318.9,3.2078]
[1735607252475,0.30182,3319.0,3318.5,4.8633]
[1735607252670,2.30166844,3319.1,3318.7,0.30184]
[1735607253177,2.60347844,3319.1,3318.6,0.30185]
[1735607253384,2.30166844,3319.1,3318.7,0.30184]
[1735607253684,2.60347844,3319.1,3318.6,0.30185]
[1735607253986,0.30184,3318.8,3318.5,4.8633]
[1735607254286,2.30166844,3318.8,3318.5,4.8633]
[1735607254475,5.50946844,3318.8,3318.1,3.2078]
[1735607254683,2.60355844,3318.2,3318.1,3.2078]
[1735607255380,2.30166844,3318.2,3318.1,3.2078]
[1735607256480,2.60353844,3318.5,3318.1,3.2078]
[1735607256686,0.30187,3318.4,3318.1,3.2078]
[1735607256986,2.60353844,3318.5,3318.1,3.5097]
[1735607257180,2.30166844,3318.5,3318.2,0.30189]
[1735607257389,3.2078,3318.8,3318.1,3.2078]
[1735607257582,5.81130844,3318.8,3318.3,0.30188]
[1735607257781,5.50946844,3318.8,3318.3,0.30188]
[1735607257985,5.50946844,3318.8,3318.4,0.30187]
[1735607258184,5.50946844,3318.8,3318.4,1.88677]
[1735607258982,3.2078,3318.8,3318.4,1.5849]
[1735607259378,3.2078,3318.8,3318.5,0.30186]
[1735607259591,3.2078,3318.8,3318.6,0.30185]
[1735607260085,2.30166844,3319.1,3318.4,1.5849]
[1735607260278,2.30166844,3319.1,3318.1,3.2078]
[1735607260279,2.30166844,3318.5,3318.1,3.5097]
[1735607260482,2.30166844,3318.5,3318.1,3.2078]
[1735607261084,0.30189,3318.2,3318.1,3.2078]
[1735607261288,2.30166844,3318.5,3317.7,4.5558]
[1735607261485,0.30189,3318.3,3317.8,0.30192]
[1735607261683,2.60353844,3318.5,3318.1,0.3019]
[1735607261886,2.30166844,3318.5,3318.2,1.6029]
[1735607262089,3.2078,3318.6,3318.2,1.6029]
[1735607262287,3.2078,3318.6,3318.2,1.90479]
[1735607262288,3.50966,3318.6,3318.2,1.90479]
[1735607262588,2.60350844,3318.8,3318.4,3.2078]
[1735607262788,2.60350844,3318.8,3318.4,3.50967]
[1735607263089,2.60350844,3318.8,3318.4,3.2078]
[1735607263090,2.30166844,3318.8,3318.4,3.2078]
[1735607263282,2.30166844,3318.8,3318.2,1.6029]
[1735607263283,2.30166844,3318.8,3318.2,0.53355103]
[1735607263483,3.2078,3319.1,3318.2,0.53355103]
[1735607263484,0.30182,3319.0,3318.2,0.53355103]
[1735607263681,0.30183,3318.9,3318.4,0.30186]
[1735607263885,0.30183,3318.9,3318.5,0.30186]
[1735607264985,3.2078,3319.1,3318.4,1.348]
[1735607265390,0.30182,3319.0,3318.6,0.30185]
[1735607265695,5.81127844,3319.1,3318.7,0.30184]
[1735607266295,5.50946844,3319.1,3318.4,1.348]
[1735607266495,5.81127844,3319.1,3318.7,0.30184]
[1735607266702,3.2078,3319.1,3318.5,0.30186]
[1735607266890,3.50961,3319.1,3318.8,0.30183]
[1735607267085,3.2078,3319.1,3318.4,1.348]
[1735607267291,5.50946844,3319.1,3318.4,1.348]
[1735607267795,0.30185,3318.7,3318.4,1.348]
[1735607268097,5.50946844,3319.1,3318.4,1.348]
[1735607268298,0.30182,3319.0,3318.4,1.348]
[1735607268492,0.30182,3319.0,3318.7,0.30184]
[1735607268795,5.50946844,3319.1,3318.4,1.348]
[1735607268997,0.30184,3318.8,3318.4,1.64986]
[1735607269197,5.50946844,3319.1,3318.4,1.348]
[1735607269699,0.30184,3318.8,3318.4,1.64987]
[1735607269895,5.50946844,3319.1,3318.4,1.64987]
[1735607270197,0.30182,3319.0,3318.4,1.348]
[1735607270396,3.2078,3319.1,3318.9,0.30182]
[1735607270594,3.2078,3319.1,3319.0,0.30182]
[1735607270899,0.30177,3319.5,3319.1,0.3018]
[1735607271113,0.30177,3319.5,3319.2,1.9883]
[1735607271396,3.50957,3319.6,3319.2,1.98829]
[1735607271597,3.50957,3319.6,3319.2,1.6865]
[1735607271798,3.2078,3319.6,3319.4,0.30178]
[1735607271998,3.50956,3319.6,3319.3,0.30179]
[1735607272595,3.50956,3319.6,3319.5,0.30177]
[1735607272596,3.2078,3319.6,3319.5,0.30177]
[1735607272991,3.2078,3320.0,3319.3,1.348]
[1735607273394,3.2078,3320.0,3319.7,0.30175]
[1735607273600,3.50953,3320.0,3319.7,0.30175]
[1735607273999,3.50953,3320.0,3319.3,1.348]
[1735607274000,3.2078,3320.0,3319.3,1.348]
[1735607274200,3.2078,3320.0,3319.9,0.30174]
[1735607276197,3.50953,3320.0,3319.8,0.30174]
[1735607276399,3.2078,3320.0,3319.9,0.30174]
[1735607276599,0.30174,3319.9,3319.7,0.30175]
[1735607276899,3.2078,3320.0,3319.9,0.30174]
[1735607279003,3.2078,3320.6,3319.8,3.2078]
[1735607279202,3.2078,3320.6,3320.5,0.30168]
[1735607279402,3.2078,3320.6,3320.5,1.64968]
[1735607279605,3.2078,3320.6,3320.5,1.348]
[1735607279901,5.81113844,3320.6,3320.5,1.348]
[1735607280200,0.3017,3320.3,3320.0,1.64972]
[1735607280401,0.30169,3320.4,3320.1,0.30171]
[1735607280603,5.50946844,3320.6,3320.0,1.348]
[1735607280904,0.3017,3320.3,3320.0,1.64972]
[1735607281402,5.50946844,3320.6,3320.0,1.348]
[1735607281403,0.30169,3320.4,3320.0,1.348]
[1735607281706,0.30169,3320.4,3320.1,0.30171]
[1735607282100,0.30172,3320.1,3319.9,1.7304]
[1735607282305,3.50951,3320.2,3319.9,3.38013]
[1735607282600,3.2078,3320.2,3320.0,0.30173]
[1735607282804,3.50951,3320.2,3320.0,0.30173]
[1735607283005,3.2078,3320.2,3319.9,3.38013]
[1735607283203,0.30172,3320.1,3319.9,3.0784]
[1735607283405,0.30172,3320.1,3319.9,3.38013]
[1735607283806,0.30173,3320.0,3319.9,1.348]
[1735607283998,3.2078,3320.2,3319.7,1.6595]
[1735607284196,3.2078,3320.2,3319.6,0.30176]
[1735607284407,3.2078,3319.8,3319.2,1.348]
[1735607284609,0.30179,3319.3,3319.2,1.348]
[1735607284905,3.50959,3319.3,3319.2,1.348]
[1735607285205,3.50959,3319.3,3318.6,41.10185]
[1735607285206,0.30184,3318.8,3318.6,41.10185]
[1735607285599,3.2078,3318.8,3318.6,40.8]
[1735607285803,0.30185,3318.7,3318.5,1.331]
[1735607286003,3.2078,3318.8,3318.0,6.3717]
[1735607286201,0.30189,3318.3,3318.1,42.131]
[1735607286604,0.30187,3318.5,3318.2,0.30189]
[1735607286906,0.30186,3318.6,3318.3,0.30188]
[1735607287205,3.2078,3318.8,3318.2,0.30189]
[1735607287408,0.30187,3318.5,3318.2,0.30189]
[1735607287605,0.30187,3318.5,3318.1,42.43289]
[1735607287800,0.30186,3318.6,3318.2,0.30189]
[1735607288303,2.2966372,3318.7,3318.5,0.00184614]
[1735607288506,0.30185,3318.6,3318.5,0.00184614]
[1735607289106,2.2966372,3318.6,3318.1,41.10139094]
[1735607289406,3.50969,3318.3,3318.1,40.79950094]
[1735607289607,3.2078,3318.3,3318.1,40.79950094]
[1735607289809,3.2078,3318.3,3318.2,0.30189]
[1735607290409,3.50968,3318.3,3318.1,40.79950094]
[1735607291003,3.2078,3318.3,3318.1,40.79950094]
[1735607291205,3.2078,3318.3,3318.2,0.30189]
[1735607291404,3.2078,3318.3,3318.2,1.63289]
[1735607291612,3.2078,3318.3,3318.2,1.331]
[1735607293415,3.2078,3318.3,3318.1,40.79950094]
[1735607293611,0.30189,3318.2,3317.9,1.673]
[1735607293913,3.50969,3318.3,3317.9,1.97491]
[1735607294109,0.30189,3318.2,3317.9,1.673]
[1735607294306,0.3019,3318.1,3317.9,1.673]
[1735607294610,0.3019,3318.1,3317.6,0.30194]
[1735607294909,3.2078,3317.8,3317.5,42.131]
[1735607295114,3.2078,3317.8,3317.6,0.30195]
[1735607295610,3.50973,3317.8,3317.5,40.8]
[1735607295810,3.50973,3317.8,3316.4,7.539]
[1735607295811,2.30166844,3317.7,3316.4,9.84066844]
[1735607296009,3.2078,3317.8,3316.9,4.5388]
[1735607296010,0.30199,3317.1,3316.9,4.5388]
[1735607296211,3.2078,3317.0,3316.9,1.331]
[1735607296512,5.50946844,3317.7,3316.9,1.331]
[1735607297109,0.30196,3317.5,3317.0,0.302]
[1735607297308,0.30198,3317.2,3316.9,1.331]
[1735607297505,5.50946844,3317.7,3316.9,1.331]
[1735607297703,0.30195,3317.6,3317.2,0.30198]
[1735607297913,0.30195,3317.6,3317.1,0.30198]
[1735607298306,5.50946844,3317.7,3317.2,0.30198]
[1735607298515,5.81140844,3317.7,3316.9,1.331]
[1735607298714,5.81140844,3317.7,3317.2,0.30198]
[1735607298916,3.2078,3317.7,3317.4,0.30196]
[1735607299116,3.2078,3317.7,3317.0,3.2078]
[1735607299411,3.2078,3317.7,3317.1,1.331]
[1735607299916,0.30196,3317.5,3317.1,1.63298]
[1735607300216,0.30196,3317.5,3317.2,0.30198]
[1735607300408,3.2078,3317.7,3317.2,0.30198]
[1735607300614,3.50974,3317.7,3317.3,0.30197]
[1735607301317,0.30195,3317.6,3317.3,0.30197]
[1735607301713,3.2078,3317.7,3317.2,1.7493]
[1735607301925,3.2078,3318.1,3317.5,0.30195]
[1735607302111,3.2078,3318.1,3317.4,3.2078]
[1735607302112,3.2078,3318.1,3317.6,0.30194]
[1735607302415,3.2078,3318.1,3317.2,4.72155047]
[1735607302416,3.2078,3318.1,3317.7,40.8]
[1735607302617,0.30193,3317.8,3317.7,40.8]
[1735607303410,0.30191,3318.0,3317.7,40.8]
[1735607303619,3.2078,3318.1,3317.9,0.30192]
[1735607303819,3.2078,3318.1,3317.7,40.8]
[1735607304020,0.30191,3318.0,3317.7,41.10193]
[1735607304314,3.2078,3318.1,3317.7,40.8]
[1735607304616,3.2078,3318.1,3318.0,0.30191]
[1735607305013,2.2966372,3318.6,3318.0,0.30191]
[1735607305014,3.2078,3318.5,3318.4,0.30187]
[1735607306016,0.30182,3319.1,3318.8,0.30183]
[1735607306215,0.30182,3319.0,3318.7,0.30184]
[1735607306419,0.30182,3319.0,3318.7,1.63284]
[1735607308315,6.18005047,3319.2,3318.7,1.331]
[1735607308616,3.2078,3318.8,3318.7,1.331]
[1735607308817,3.2078,3318.8,3318.7,1.63285]
[1735607309409,3.2078,3318.8,3318.7,1.331]
[1735607309814,3.50964,3318.8,3318.7,1.331]
[1735607310108,3.2078,3318.8,3318.7,1.331]
[1735607310312,3.2078,3318.8,3318.7,1.63285]
[1735607310519,3.2078,3319.3,3318.7,1.63285]
[1735607310714,3.2078,3319.3,3319.2,0.30179]
[1735607311515,2.2966372,3319.6,3318.8,3.4643]
[1735607311714,2.2966372,3319.6,3319.5,0.30177]
[1735607311909,3.47239144,3319.8,3319.5,1.331]
[1735607312114,3.47239144,3319.8,3319.7,0.30175]
[1735607312321,6.98187144,3320.5,3320.2,0.3017]
[1735607312511,6.98187144,3320.5,3319.6,6.5615]
[1735607312512,6.68019144,3320.5,3319.6,6.5615]
[1735607312716,6.68019144,3320.5,3320.4,0.30169]
[1735607313124,6.68019144,3320.5,3320.3,1.331]
[1735607313425,0.30169,3320.4,3320.3,1.331]
[1735607313925,3.50949,3320.5,3320.3,1.331]
[1735607314226,3.2078,3320.5,3320.4,0.30169]
[1735607314725,3.2078,3320.5,3320.3,1.331]
[1735607314925,3.2078,3320.5,3320.3,1.63269]
[1735607315324,3.2078,3320.5,3320.3,1.331]
[1735607315526,3.2078,3320.5,3320.4,0.30169]
[1735607315715,0.30165,3320.9,3320.3,1.331]
[1735607315716,3.2078,3320.9,3320.3,1.331]
[1735607315919,0.30168,3320.6,3320.3,1.331]
[1735607316214,3.2078,3320.9,3320.3,1.331]
[1735607316215,0.30168,3320.5,3320.3,1.331]
[1735607316414,0.30168,3320.6,3320.3,1.331]
[1735607316614,0.30168,3320.6,3320.3,1.6327]
[1735607316814,0.30165,3320.8,3320.3,1.331]
[1735607317014,3.2078,3320.4,3319.8,1.63074]
[1735607317214,3.2078,3320.4,3319.5,3.2078]
[1735607317215,3.2078,3320.0,3319.5,3.2078]
[1735607317417,3.50953,3320.0,3319.7,0.30175]
[1735607317619,3.2078,3320.0,3319.7,0.30175]
[1735607318020,3.50953,3320.0,3319.6,0.30176]
[1735607318212,3.50953,3320.0,3319.5,3.2078]
[1735607318213,3.2078,3320.0,3319.5,3.2078]
[1735607318617,3.50953,3320.0,3319.6,1.329]
[1735607318821,3.50953,3320.0,3319.7,0.30175]
[1735607319026,0.30174,3319.9,3319.7,1.329]
[1735607319523,3.2078,3320.0,3319.7,1.329]
[1735607319524,3.50953,3320.0,3319.7,1.63075]
[1735607319718,3.50953,3320.0,3319.9,0.30174]
[1735607319719,3.2078,3320.0,3319.9,0.30174]
[1735607319918,3.2078,3320.0,3319.7,1.329]
[1735607320125,3.50953,3320.0,3319.7,1.63075]
[1735607320324,3.2078,3320.0,3319.8,0.30174]
[1735607320521,3.2078,3320.0,3319.9,0.30174]
[1735607320729,3.72640047,3320.8,3319.5,3.96223]
[1735607320730,3.5095,3320.4,3319.5,3.96223]
[1735607321022,3.2078,3320.4,3319.6,1.329]
[1735607321218,0.30171,3320.2,3319.9,0.30173]
[1735607321623,3.2078,3320.0,3319.9,0.30173]
[1735607322526,3.2078,3320.0,3319.7,1.6912]
[1735607322527,3.2078,3320.4,3319.7,4.11218]
[1735607322721,3.2078,3320.4,3320.3,0.3017]
[1735607323120,3.2078,3320.4,3319.8,40.8]
[1735607323320,0.30172,3320.1,3319.9,1.329]
[1735607323625,3.50953,3320.0,3319.9,1.329]
[1735607323926,3.2078,3320.0,3319.9,1.329]
[1735607324226,3.2078,3320.0,3319.9,1.63074]
[1735607324922,3.2078,3320.7,3319.9,1.329]
[1735607325227,3.2078,3320.7,3320.6,0.30167]
[1735607325820,3.47239144,3321.2,3320.2,0.75428]
[1735607325821,6.68019144,3321.2,3320.2,0.75428]
[1735607326130,0.30164,3321.0,3320.8,0.30165]
[1735607326422,0.30164,3321.0,3320.4,3.2078]
[1735607326423,0.30164,3321.0,3320.9,1.329]
[1735607326626,3.2078,3321.2,3320.9,1.329]
[1735607326928,0.30164,3321.0,3320.9,1.329]
[1735607328323,3.2078,3321.2,3320.9,1.329]
[1735607328524,0.30163,3321.1,3320.9,1.329]
[1735607329624,3.50942,3321.2,3320.9,1.329]
[1735607329929,4.60875047,3321.6,3320.9,1.329]
[1735607329930,3.2078,3321.6,3320.9,1.329]
[1735607330129,3.2078,3321.6,3321.4,0.3016]
[1735607330325,3.2078,3321.6,3321.4,41.1016]
[1735607330525,3.2078,3321.6,3321.5,0.30159]
[1735607332030,3.2078,3322.0,3321.9,0.30155]
[1735607332631,3.2078,3322.4,3321.8,1.328]